[Event "9th Bangabandhu Rapid Women 2021"]
[Site "Dhaka"]
[Date "2021.04.03"]
[Round "7.1"]
[White "Noshin, Anjum"]
[Black "Jannatul, Ferdous"]
[Result "1-0"]
[ECO "B19"]
[WhiteElo "1874"]
[BlackElo "1781"]
[Annotator "NA RC"]
[PlyCount "131"]
[EventDate "2021.04.02"]
[EventType "swiss"]
[EventCountry "BAN"]
[SourceTitle "playchess.com"]
[Source "ChessBase"]
[SourceQuality "1"]
[TimeControl "1500+10"]

1. e4 {[%emt 0:00:00]} c6 {[%emt 0:00:00]} 2. d4 {[%emt 0:00:00]} d5 {[%emt 0:00:01]} 3. Nc3 {[%emt 0:00:00]} dxe4 {[%emt 0:00:02]} 4. Nxe4 {[%emt 0:00:00]} Bf5 {[%emt 0:00:01]} 5. Ng3 {[%emt 0:00:00]} Bg6 {[%emt 0:00:02]} 6. h4 {[%emt 0:00:00]} h6 {[%emt 0:00:01]} 7. Nf3 {[%emt 0:00:01]} Nd7 {[%emt 0:00:07]} 8. h5 {[%emt 0:00:02]} Bh7 {[%emt 0:00:01]} 9. Bd3 {[%emt 0:00:01]} Bxd3 {[%emt 0:00:01]} 10. Qxd3 {[%emt 0:00:02]} e6 {[%emt 0:00:02]} 11. Bf4 {[%emt 0:01:30]} Qa5+ {[%emt 0:00:07]} 12. Bd2 {[%emt 0:01:14]} Qc7 {[%emt 0:00:02]} 13. O-O-O {[%emt 0:00:44]} Ngf6 {[%emt 0:00:13]} 14. Kb1 {[%emt 0:00:23]} O-O-O {[%emt 0:00:06]} 15. Qe2 {[%emt 0:00:21]} c5 {[%emt 0:02:00]} 16. dxc5 {[%emt 0:01:57]} Bxc5 {[%emt 0:00:58]} 17. Be3 {[%emt 0:02:01]} (17. Rh4 $14) 17... Bxe3 {[%emt 0:02:51]} 18. Qxe3 {[%emt 0:00:08]} Nd5 {[%emt 0:00:19]} 19. Qxa7 {[%emt 0:01:53]} N7b6 {[%emt 0:00:30]} 20. Qa5 {[%emt 0:05:20]} Nf4 {[%emt 0:03:21]} 21. Qe5 {[%emt 0:01:34]} f6 {[%emt 0:06:39]} 22. Qxc7+ {[%emt 0:00:18]} Kxc7 {[%emt 0:00:01]} 23. Nd4 {[%emt 0:00:23]} Rhe8 {[%emt 0:00:30]} 24. Nge2 {[%emt 0:01:05]} Nfd5 {[%emt 0:04:23]} 25. Nb5+ {[%emt 0:00:39]} Kb8 {[%emt 0:00:23]} 26. Nec3 {[%emt 0:00:35]} Rd7 {[%emt 0:02:05]} 27. Nxd5 {[%emt 0:00:40]} Rxd5 {[%emt 0:01:21]} 28. Nc3 {[%emt 0:00:13]} Rg5 {[%emt 0:00:42]} 29. g3 {[%emt 0:00:19]} Rc8 {[%emt 0:00:57]} 30. Rde1 {[%emt 0:02:11]} Rc6 {[%emt 0:00:31]} 31. Ne2 {[%emt 0:01:04]} Rd5 {[%emt 0:00:53]} 32. Rd1 {[%emt 0:01:06]} Rdc5 {[%emt 0:00:49]} 33. c3 {[%emt 0:00:56]} e5 {[%emt 0:00:09]} 34. Rd8+ {[%emt 0:00:42]} Rc8 {[%emt 0:00:11]} 35. Rhd1 {[%emt 0:00:24]} Kc7 {[%emt 0:00:13]} 36. Rxc8+ {[%emt 0:00:10]} Nxc8 {[%emt 0:00:05]} 37. Nc1 {[%emt 0:00:43]} e4 {[%emt 0:00:13]} 38. Rh1 {[%emt 0:01:50]} Rf5 {[%emt 0:00:06]} 39. Rh4 {[%emt 0:00:09]} Nd6 {[%emt 0:00:13]} 40. Rh2 $1 {[%emt 0:00:41]} Nc4 {[%emt 0:00:03]} 41. Nb3 {[%emt 0:00:03]} Nd6 {[%emt 0:00:20]} 42. Nd4 {[%emt 0:00:05]} Re5 {[%emt 0:00:08]} 43. Rh4 {[%emt 0:00:12]} b6 {[%emt 0:00:12]} 44. Rg4 {[%emt 0:00:06]} Ne8 {[%emt 0:00:13]} 45. Kc2 {[%emt 0:00:08]} f5 {[%emt 0:00:10]} 46. Rg6 {[%emt 0:00:06]} Re7 {[%emt 0:00:13]} 47. Nxf5 {[%emt 0:00:35]} Rf7 {[%emt 0:00:07]} 48. g4 {[%emt 0:00:02]} b5 {[%emt 0:00:13]} 49. Kd2 {[%emt 0:00:04]} Nf6 {[%emt 0:00:10]} 50. Rxg7 {[%emt 0:00:17]} Rxg7 {[%emt 0:00:02]} 51. Nxg7 {[%emt 0:00:02]} Nxg4 {[%emt 0:00:02]} 52. Ke2 {[%emt 0:00:02]} Kd6 {[%emt 0:00:06]} 53. f3 {[%emt 0:00:09]} exf3+ {[%emt 0:00:09]} 54. Kxf3 {[%emt 0:00:01]} Ne5+ {[%emt 0:00:03]} 55. Ke4 {[%emt 0:00:05]} Nc4 {[%emt 0:00:19]} 56. b3 {[%emt 0:00:13]} Nd2+ {[%emt 0:00:19]} 57. Kd3 {[%emt 0:00:03]} Nf1 {[%emt 0:00:07]} 58. Nf5+ {[%emt 0:00:03]} Ke6 {[%emt 0:00:03]} 59. Nxh6 {[%emt 0:00:02]} Ng3 {[%emt 0:00:04]} 60. Ng4 {[%emt 0:00:10]} Nxh5 {[%emt 0:00:02]} 61. c4 {[%emt 0:00:09]} bxc4+ {[%emt 0:00:19]} 62. Kxc4 {[%emt 0:00:04]} Kd6 {[%emt 0:00:02]} 63. Ne3 {[%emt 0:00:03]} Kc6 {[%emt 0:00:05]} 64. Nf5 {[%emt 0:00:02]} Nf4 {[%emt 0:00:19]} 65. b4 $18 {[%emt 0:00:02]} Ne2 {[%emt 0:00:16]} 66. Nd4+ {[%emt 0:01:53]} 1-0

[Event "9th Bangabandhu Rapid Women 2021"]
[Site "Dhaka"]
[Date "2021.04.03"]
[Round "7.4"]
[White "Nusrat Jahan, Alo"]
[Black "Ahmed, Walijah"]
[Result "1-0"]
[ECO "B22"]
[WhiteElo "1806"]
[BlackElo "1840"]
[Annotator "NA"]
[PlyCount "109"]
[EventDate "2021.04.02"]
[EventType "swiss"]
[EventCountry "BAN"]
[SourceTitle "playchess.com"]
[Source "ChessBase"]
[SourceQuality "1"]
[TimeControl "1500+10"]

1. e4 {[%emt 0:25:10]} c5 {[%emt 0:25:10]} 2. Nf3 {[%emt 0:00:10]} e6 {[%emt 0:00:10]} 3. c3 {[%emt 0:00:10]} d5 {[%emt 0:00:10]} 4. exd5 {[%emt 0:00:10]} Qxd5 {[%emt 0:00:10]} 5. d4 {[%emt 0:00:10]} Nf6 {[%emt 0:00:10]} 6. Be2 {[%emt 0:00:10]} Nc6 {[%emt 0:00:10]} 7. Be3 {[%emt 0:00:10]} Ng4 {[%emt 0:00:10]} 8. h3 {[%emt 0:00:10]} Nxe3 {[%emt 0:00:10]} 9. fxe3 {[%emt 0:00:10]} Bd6 {[%emt 0:00:10]} 10. O-O {[%emt 0:00:10]} O-O {[%emt 0:00:10]} 11. Nbd2 {[%emt 0:00:10]} cxd4 {[%emt 0:00:10]} 12. exd4 {[%emt 0:00:10]} Bc7 {[%emt 0:00:10]} 13. Bc4 {[%emt 0:00:10]} Qh5 {[%emt 0:00:10]} 14. Qe2 {[%emt 0:00:10]} Ne7 {[%emt 0:00:10]} 15. Ne4 {[%emt 0:00:10]} h6 {[%emt 0:00:10]} 16. Rad1 {[%emt 0:00:10]} Bd7 {[%emt 0:00:10]} 17. Nc5 {[%emt 0:00:10]} Bc6 {[%emt 0:00:10]} 18. Bb5 {[%emt 0:00:10]} a6 {[%emt 0:00:10]} 19. Bxc6 {[%emt 0:00:10]} Nxc6 20. Nxb7 {[%emt 0:00:10]} Bb6 $16 {[%emt 0:00:20]} 21. Nd6 {[%emt 0:00:10]} Ba7 {[%emt 0:00:10]} 22. Nc4 {[%emt 0:00:10]} Rab8 {[%emt 0:00:10]} 23. b3 {[%emt 0:00:10]} Rfe8 {[%emt 0:00:10]} 24. Nce5 {[%emt 0:00:10]} Nxe5 {[%emt 0:00:10]} 25. Qxe5 {[%emt 0:00:10]} Qg6 {[%emt 0:00:10]} 26. Qe2 {[%emt 0:00:10]} Qh5 {[%emt 0:00:10]} 27. Qxa6 {[%emt 0:00:10]} Ra8 28. Qd3 {[%emt 0:00:10]} Bb8 {[%emt 0:00:20]} 29. a4 {[%emt 0:00:10]} Ba7 {[%emt 0:00:10]} 30. Kh1 {[%emt 0:00:10]} Bb8 {[%emt 0:00:10]} 31. Qe4 {[%emt 0:00:10]} Bc7 {[%emt 0:00:10]} 32. Qb7 {[%emt 0:00:10]} Bg3 {[%emt 0:00:10]} 33. Ne5 {[%emt 0:00:10]} Bxe5 {[%emt 0:00:10]} 34. dxe5 {[%emt 0:00:10]} Rab8 {[%emt 0:00:10]} 35. Qd7 {[%emt 0:00:10]} Rf8 {[%emt 0:00:10]} 36. b4 {[%emt 0:00:10]} Qxe5 {[%emt 0:00:10]} 37. Qd2 {[%emt 0:00:10]} Rbc8 {[%emt 0:00:10]} 38. Rf3 {[%emt 0:00:10]} Rc4 {[%emt 0:00:10]} 39. a5 {[%emt 0:00:10]} Rfc8 {[%emt 0:00:10]} 40. Rc1 {[%emt 0:00:10]} Qb5 {[%emt 0:00:10]} 41. Rd3 {[%emt 0:00:10]} Qc6 {[%emt 0:00:10]} 42. Rd8+ {[%emt 0:00:10]} Rxd8 {[%emt 0:00:10]} 43. Qxd8+ {[%emt 0:00:10]} Kh7 44. Qd3+ {[%emt 0:00:10]} Kg8 {[%emt 0:00:20]} 45. Qd8+ {[%emt 0:00:10]} Kh7 {[%emt 0:00:10]} 46. Qd2 {[%emt 0:00:10]} g6 {[%emt 0:00:10]} 47. Qb2 {[%emt 0:00:10]} Qb5 {[%emt 0:00:10]} 48. Ra1 {[%emt 0:00:10]} Re4 {[%emt 0:00:10]} 49. a6 {[%emt 0:00:10]} Re2 {[%emt 0:00:10]} 50. Qxe2 {[%emt 0:00:10]} Qxe2 {[%emt 0:00:10]} 51. a7 g5 {[%emt 0:00:10]} 52. a8=Q {[%emt 0:00:20]} g4 {[%emt 0:00:10]} 53. hxg4 {[%emt 0:00:10]} Qxg4 {[%emt 0:00:10]} 54. Qf3 {[%emt 0:00:10]} Qh4+ {[%emt 0:00:10]} 55. Kg1 {[%emt 0:00:10]} 1-0

[Event "9th Bangabandhu Rapid Women 2021"]
[Site "Dhaka"]
[Date "2021.04.03"]
[Round "8.1"]
[White "Parveen, Tanima"]
[Black "Noshin, Anjum"]
[Result "*"]
[ECO "E14"]
[WhiteElo "1984"]
[BlackElo "1874"]
[Annotator "RC"]
[PlyCount "25"]
[EventDate "2021.04.02"]
[EventType "swiss"]
[EventCountry "BAN"]
[SourceTitle "playchess.com"]
[Source "ChessBase"]
[SourceQuality "1"]
[TimeControl "1500+10"]

1. d4 {[%emt 0:00:00]} Nf6 {[%emt 0:01:32]} 2. c4 {[%emt 0:00:04]} e6 {[%emt 0:00:01]} 3. Nf3 {[%emt 0:00:13]} b6 {[%emt 0:00:14]} 4. e3 {[%emt 0:00:14]} Bb7 {[%emt 0:00:03]} 5. Bd3 {[%emt 0:00:13]} Bb4+ {[%emt 0:00:23]} 6. Bd2 {[%emt 0:00:18]} Be7 {[%emt 0:00:05]} 7. Bc3 {[%emt 0:00:07]} O-O {[%emt 0:23:52]} 8. Nbd2 {[%emt 0:00:02]} d5 {[%emt 0:00:20]} 9. O-O {[%emt 0:00:12]} Ne4 {[%emt 0:00:16]} 10. Qc2 {[%emt 0:00:29]} f5 {[%emt 0:00:22]} 11. Ne5 {[%emt 0:00:27]} Nd7 {[%emt 0:23:22]} 12. Ndf3 {[%emt 0:00:37]} c5 {[%emt 0:00:36]} 13. Rac1 {[%emt 0:24:14]} *

[Event "9th Bangabandhu Rapid Women 2021"]
[Site "Dhaka"]
[Date "2021.04.03"]
[Round "8.2"]
[White "Talukder, Umme Taslima Protiva"]
[Black "Hamid, Rani"]
[Result "*"]
[ECO "C54"]
[WhiteElo "1698"]
[BlackElo "1923"]
[Annotator "RC"]
[PlyCount "20"]
[EventDate "2021.04.02"]
[EventType "swiss"]
[EventCountry "BAN"]
[SourceTitle "playchess.com"]
[Source "ChessBase"]
[SourceQuality "1"]
[TimeControl "1500+10"]

1. e4 {[%emt 0:00:00]} e5 {[%emt 0:00:00]} 2. Nf3 {[%emt 0:00:00]} Nc6 {[%emt 0:00:00]} 3. Bc4 {[%emt 0:00:00]} Bc5 {[%emt 0:00:00]} 4. c3 {[%emt 0:00:05]} Nf6 {[%emt 0:00:00]} 5. d3 {[%emt 0:00:02]} d6 {[%emt 0:00:00]} 6. O-O {[%emt 0:00:02]} a6 {[%emt 0:00:02]} 7. h3 {[%emt 0:00:08]} h6 {[%emt 0:00:02]} 8. Bb3 {[%emt 0:00:11]} Ba7 {[%emt 0:00:39]} 9. Re1 {[%emt 0:00:07]} g5 {[%emt 0:01:11]} 10. Nh2 {[%emt 0:03:53]} g4 {[%emt 0:01:56]} *

[Event "9th Bangabandhu Rapid Women 2021"]
[Site "Dhaka"]
[Date "2021.04.03"]
[Round "8.4"]
[White "Jannatul, Ferdous"]
[Black "Sabikun Nahar, Tonima"]
[Result "1/2-1/2"]
[ECO "B12"]
[WhiteElo "1781"]
[BlackElo "1533"]
[Annotator "NA"]
[PlyCount "74"]
[EventDate "2021.04.02"]
[EventType "swiss"]
[EventCountry "BAN"]
[SourceTitle "playchess.com"]
[Source "ChessBase"]
[SourceQuality "1"]
[TimeControl "1500+10"]

1. e4 {[%emt 0:25:10]} c6 {[%emt 0:25:10]} 2. d4 {[%emt 0:00:10]} d5 {[%emt 0:00:10]} 3. e5 {[%emt 0:00:10]} Bf5 {[%emt 0:00:10]} 4. Nf3 {[%emt 0:00:10]} e6 {[%emt 0:00:10]} 5. Be2 {[%emt 0:00:10]} c5 {[%emt 0:00:10]} 6. Be3 {[%emt 0:00:10]} Ne7 {[%emt 0:00:10]} 7. O-O {[%emt 0:00:10]} cxd4 {[%emt 0:00:10]} 8. Nxd4 {[%emt 0:00:10]} Nbc6 {[%emt 0:00:10]} 9. f4 {[%emt 0:00:10]} Nxd4 {[%emt 0:00:10]} 10. Bxd4 {[%emt 0:00:10]} h6 {[%emt 0:00:10]} 11. Nd2 {[%emt 0:00:10]} Nc6 {[%emt 0:00:10]} 12. Bf2 {[%emt 0:00:10]} Be7 {[%emt 0:00:10]} 13. Nf3 {[%emt 0:00:10]} O-O {[%emt 0:00:10]} 14. c3 {[%emt 0:00:10]} a6 {[%emt 0:00:10]} 15. a4 {[%emt 0:00:10]} Qc7 {[%emt 0:00:10]} 16. Kh1 {[%emt 0:00:10]} f6 {[%emt 0:00:10]} 17. exf6 {[%emt 0:00:10]} Bxf6 {[%emt 0:00:10]} 18. Be3 {[%emt 0:00:10]} Rad8 {[%emt 0:00:10]} 19. Nd4 {[%emt 0:00:10]} Bxd4 {[%emt 0:00:10]} 20. Bxd4 {[%emt 0:00:10]} Nxd4 {[%emt 0:00:10]} 21. Qxd4 {[%emt 0:00:10]} Be4 {[%emt 0:00:10]} 22. Qe3 {[%emt 0:00:10]} e5 {[%emt 0:00:10]} 23. fxe5 {[%emt 0:00:10]} Qxe5 {[%emt 0:00:10]} 24. Rxf8+ {[%emt 0:00:10]} Rxf8 {[%emt 0:00:10]} 25. Bf3 {[%emt 0:00:10]} Re8 {[%emt 0:00:10]} 26. Re1 {[%emt 0:00:10]} Qc7 {[%emt 0:00:10]} 27. Qd4 {[%emt 0:00:10]} Qc6 {[%emt 0:00:10]} 28. Bxe4 {[%emt 0:00:10]} Rxe4 {[%emt 0:00:10]} 29. Rxe4 {[%emt 0:00:10]} dxe4 {[%emt 0:00:10]} 30. Kg1 {[%emt 0:00:10]} e3 {[%emt 0:00:10]} 31. Qxe3 {[%emt 0:00:10]} Qxa4 {[%emt 0:00:10]} 32. Qd2 {[%emt 0:00:10]} Qb3 {[%emt 0:00:10]} 33. Qd8+ {[%emt 0:00:10]} Kf7 {[%emt 0:00:10]} 34. Qd7+ {[%emt 0:00:10]} Kf6 {[%emt 0:00:10]} 35. Qd6+ {[%emt 0:00:10]} Kf7 {[%emt 0:00:10]} 36. Qd7+ {[%emt 0:00:10]} Kf6 {[%emt 0:00:10]} 37. Qd6+ {[%emt 0:00:10]} Kf7 {[%emt 0:00:10]} 1/2-1/2

[Event "9th Bangabandhu Rapid Women 2021"]
[Site "Dhaka"]
[Date "2021.04.03"]
[Round "9.2"]
[White "Noshin, Anjum"]
[Black "Wadifa, Ahmed"]
[Result "1-0"]
[ECO "B82"]
[WhiteElo "1874"]
[BlackElo "1525"]
[Annotator "NA RC"]
[PlyCount "91"]
[EventDate "2021.04.02"]
[EventType "swiss"]
[EventCountry "BAN"]
[SourceTitle "playchess.com"]
[Source "ChessBase"]
[SourceQuality "1"]
[TimeControl "1500+10"]

1. e4 {[%emt 0:00:00]} c5 {[%emt 0:00:00]} 2. Nf3 {[%emt 0:00:00]} e6 {[%emt 0:00:00]} 3. d4 {[%emt 0:00:00]} cxd4 4. Nxd4 {[%emt 0:00:00]} a6 {[%emt 0:00:00]} 5. Nc3 {[%emt 0:00:00]} Qc7 {[%emt 0:00:01]} 6. Bd3 {[%emt 0:00:03]} Nf6 {[%emt 0:00:05]} 7. Qe2 {[%emt 0:00:08]} d6 {[%emt 0:00:49]} 8. f4 {[%emt 0:00:12]} Nbd7 {[%emt 0:00:04]} 9. Bd2 {[%emt 0:00:10]} Be7 {[%emt 0:00:13]} 10. O-O-O {[%emt 0:00:28]} b5 {[%emt 0:00:35]} 11. a3 {[%emt 0:00:09]} Bb7 {[%emt 0:00:27]} 12. g4 {[%emt 0:00:15]} Nc5 {[%emt 0:00:04]} 13. g5 {[%emt 0:02:30]} Nfd7 {[%emt 0:00:19]} 14. Kb1 {[%emt 0:02:35]} O-O-O {[%emt 0:04:32]} 15. Rhf1 {[%emt 0:00:42]} Kb8 {[%emt 0:01:10]} 16. Be1 {[%emt 0:03:48]} Nb6 {[%emt 0:01:34]} 17. Nb3 {[%emt 0:00:30]} d5 {[%emt 0:02:05]} 18. exd5 {[%emt 0:00:26]} Nxd5 {[%emt 0:00:26]} 19. Nxd5 {[%emt 0:00:32]} Bxd5 {[%emt 0:00:15]} 20. Ba5 {[%emt 0:00:24]} Qb7 {[%emt 0:00:58]} 21. Bxd8 {[%emt 0:01:41]} Nxd3 {[%emt 0:01:27]} 22. Bxe7 {[%emt 0:00:11]} Qxe7 {[%emt 0:00:37]} 23. Rxd3 {[%emt 0:00:48]} Bc4 {[%emt 0:00:41]} 24. Qe5+ {[%emt 0:00:03]} Ka8 {[%emt 0:00:37]} 25. Qe4+ {[%emt 0:00:06]} Kb8 {[%emt 0:00:08]} 26. Rfd1 {[%emt 0:00:09]} Bxd3 {[%emt 0:00:25]} 27. Rxd3 {[%emt 0:00:17]} Rc8 {[%emt 0:01:11]} 28. Qe5+ {[%emt 0:00:20]} Qc7 {[%emt 0:00:23]} 29. Rd7 {[%emt 0:02:42]} Qxe5 {[%emt 0:00:17]} 30. fxe5 {[%emt 0:00:01]} Rc7 {[%emt 0:00:02]} 31. Rd8+ {[%emt 0:00:25]} Ka7 {[%emt 0:00:41]} 32. Rh8 {[%emt 0:00:12]} f6 {[%emt 0:00:28]} 33. Re8 {[%emt 0:02:14]} fxe5 {[%emt 0:01:00]} 34. Rxe6 {[%emt 0:00:03]} Rf7 {[%emt 0:01:04]} 35. Rxe5 {[%emt 0:00:02]} Rf1+ {[%emt 0:00:02]} 36. Ka2 {[%emt 0:00:00]} Rf2 {[%emt 0:00:03]} 37. Re7+ {[%emt 0:00:13]} Kb6 {[%emt 0:00:07]} 38. Rxg7 {[%emt 0:00:04]} Rxh2 {[%emt 0:00:06]} 39. g6 {[%emt 0:00:11]} hxg6 {[%emt 0:00:57]} 40. Rxg6+ {[%emt 0:00:01]} Ka7 {[%emt 0:00:01]} 41. c3 {[%emt 0:00:13]} Rh5 {[%emt 0:00:11]} 42. Nd4 {[%emt 0:00:04]} Kb7 {[%emt 0:00:19]} 43. b4 {[%emt 0:00:29]} Rh2+ {[%emt 0:00:31]} 44. Kb3 {[%emt 0:00:01]} Rh3 {[%emt 0:00:15]} 45. Ne6 {[%emt 0:00:07]} a5 {[%emt 0:01:12]} 46. Nc5+ {[%emt 0:00:11]} 1-0

[Event "9th Bangabandhu Rapid Women 2021"]
[Site "Dhaka"]
[Date "2021.04.03"]
[Round "9.4"]
[White "Jannatul, Ferdous"]
[Black "Israt, Jahan Diba"]
[Result "0-1"]
[ECO "D02"]
[WhiteElo "1781"]
[BlackElo "1675"]
[Annotator "NA RC"]
[PlyCount "197"]
[EventDate "2021.04.02"]
[EventType "swiss"]
[EventCountry "BAN"]
[SourceTitle "playchess.com"]
[Source "ChessBase"]
[SourceQuality "1"]
[TimeControl "1500+10"]

1. d4 {[%emt 0:25:10]} d5 {[%emt 0:25:10]} 2. Bf4 {[%emt 0:00:10]} Nf6 {[%emt 0:00:10]} 3. Nf3 {[%emt 0:00:10]} c5 {[%emt 0:00:10]} 4. e3 {[%emt 0:00:10]} Nc6 {[%emt 0:00:10]} 5. c3 {[%emt 0:00:10]} Qb6 {[%emt 0:00:10]} 6. Qb3 {[%emt 0:00:10]} c4 {[%emt 0:00:10]} 7. Qxb6 {[%emt 0:00:10]} axb6 {[%emt 0:00:10]} 8. Nbd2 {[%emt 0:00:10]} h6 {[%emt 0:00:10]} 9. Be2 {[%emt 0:00:10]} Bf5 {[%emt 0:00:10]} 10. O-O {[%emt 0:00:10]} e6 {[%emt 0:00:10]} 11. h3 {[%emt 0:00:10]} Be7 {[%emt 0:00:10]} 12. Ne5 {[%emt 0:00:10]} O-O {[%emt 0:00:10]} 13. b3 {[%emt 0:00:10]} b5 {[%emt 0:00:10]} 14. bxc4 {[%emt 0:00:10]} bxc4 {[%emt 0:00:10]} 15. a4 {[%emt 0:00:10]} Bc2 {[%emt 0:00:10]} 16. Bd1 {[%emt 0:00:10]} Bxd1 {[%emt 0:00:10]} 17. Rfxd1 {[%emt 0:00:10]} Ra6 {[%emt 0:00:10]} 18. Rdb1 {[%emt 0:00:10]} Ra7 {[%emt 0:00:10]} 19. Nxc6 {[%emt 0:00:10]} bxc6 {[%emt 0:00:10]} 20. Rb8 {[%emt 0:00:10]} Rxb8 {[%emt 0:00:10]} 21. Bxb8 {[%emt 0:00:10]} Rb7 {[%emt 0:00:10]} 22. Rb1 {[%emt 0:00:10]} Rxb1+ {[%emt 0:00:10]} 23. Nxb1 {[%emt 0:00:10]} Bd8 {[%emt 0:00:10]} 24. Bd6 {[%emt 0:00:10]} Ba5 {[%emt 0:00:10]} 25. f3 {[%emt 0:00:10]} Nd7 {[%emt 0:00:10]} 26. Bb4 {[%emt 0:00:10]} Bxb4 {[%emt 0:00:10]} 27. cxb4 {[%emt 0:00:10]} Nb8 {[%emt 0:00:10]} 28. Kf2 {[%emt 0:00:10]} Kf8 {[%emt 0:00:10]} 29. Ke2 {[%emt 0:00:10]} Ke7 {[%emt 0:00:10]} 30. Kd2 {[%emt 0:00:10]} Kd6 {[%emt 0:00:10]} 31. Kc3 {[%emt 0:00:10]} f6 {[%emt 0:00:10]} 32. Nd2 {[%emt 0:00:10]} e5 {[%emt 0:00:10]} 33. Nf1 {[%emt 0:00:10]} g6 {[%emt 0:00:10]} 34. g4 {[%emt 0:00:10]} f5 {[%emt 0:00:10]} 35. Ng3 {[%emt 0:00:10]} f4 {[%emt 0:00:10]} 36. exf4 {[%emt 0:00:10]} exf4 {[%emt 0:00:10]} 37. Ne2 {[%emt 0:00:10]} g5 {[%emt 0:00:10]} 38. Nc1 {[%emt 0:00:10]} Kc7 {[%emt 0:00:10]} 39. Na2 {[%emt 0:00:10]} Kb6 {[%emt 0:00:10]} 40. Nc1 {[%emt 0:00:10]} Nd7 {[%emt 0:00:10]} 41. Ne2 {[%emt 0:00:10]} Nf6 {[%emt 0:00:10]} 42. h4 {[%emt 0:00:10]} Ng8 {[%emt 0:00:10]} 43. hxg5 {[%emt 0:00:10]} hxg5 {[%emt 0:00:10]} 44. Ng1 {[%emt 0:00:10]} Nh6 {[%emt 0:00:10]} 45. Nh3 {[%emt 0:00:10]} Nf7 {[%emt 0:00:10]} 46. Nf2 {[%emt 0:00:10]} Nd6 {[%emt 0:00:10]} 47. Nd1 {[%emt 0:00:10]} Nc8 {[%emt 0:00:10]} 48. Kd2 {[%emt 0:00:10]} Ne7 {[%emt 0:00:10]} 49. Nc3 {[%emt 0:00:10]} Nc8 {[%emt 0:00:10]} 50. Ne2 {[%emt 0:00:10]} Nd6 {[%emt 0:00:10]} 51. Nc3 {[%emt 0:00:10]} Nc8 {[%emt 0:00:10]} 52. Ke2 {[%emt 0:00:10]} Nd6 {[%emt 0:00:10]} 53. Kd2 {[%emt 0:00:10]} Nc8 {[%emt 0:00:10]} 54. Nd1 {[%emt 0:00:10]} Nd6 {[%emt 0:00:10]} 55. Nf2 {[%emt 0:00:10]} Ka6 {[%emt 0:00:10]} 56. Kc3 {[%emt 0:00:10]} Kb6 {[%emt 0:00:10]} 57. Nd1 Nc8 {[%emt 0:00:10]} 58. Nf2 {[%emt 0:00:20]} Nd6 {[%emt 0:00:10]} 59. Nh3 {[%emt 0:00:10]} Nf7 {[%emt 0:00:10]} 60. Ng1 {[%emt 0:00:10]} Nd6 {[%emt 0:00:10]} 61. Ne2 {[%emt 0:00:10]} Nf7 {[%emt 0:00:10]} 62. Kb2 {[%emt 0:00:10]} Nd6 {[%emt 0:00:10]} 63. Nc3 {[%emt 0:00:10]} Nb7 {[%emt 0:00:10]} 64. Ka3 {[%emt 0:00:10]} Nd6 {[%emt 0:00:10]} 65. Ne2 {[%emt 0:00:10]} Nf7 {[%emt 0:00:10]} 66. Ng1 {[%emt 0:00:10]} Nd6 {[%emt 0:00:10]} 67. Kb2 {[%emt 0:00:10]} Ka6 {[%emt 0:00:10]} 68. Ne2 {[%emt 0:00:10]} Nf7 {[%emt 0:00:10]} 69. Nc3 {[%emt 0:00:10]} Kb6 {[%emt 0:00:10]} 70. Ka3 {[%emt 0:00:10]} Nd6 {[%emt 0:00:10]} 71. Ne2 {[%emt 0:00:10]} Nf7 {[%emt 0:00:10]} 72. Nc3 {[%emt 0:00:10]} Nd6 {[%emt 0:00:10]} 73. a5+ {[%emt 0:00:10]} Ka6 {[%emt 0:00:10]} 74. Ka4 {[%emt 0:00:10]} Nb5 {[%emt 0:00:10]} 75. Ne2 {[%emt 0:00:10]} Nd6 {[%emt 0:00:10]} 76. Ng1 {[%emt 0:00:10]} Nf7 {[%emt 0:00:10]} 77. Ne2 {[%emt 0:00:10]} Nd6 {[%emt 0:00:10]} 78. Nc3 {[%emt 0:00:10]} Nb5 {[%emt 0:00:10]} 79. Ne2 {[%emt 0:00:10]} Ka7 {[%emt 0:00:10]} 80. Ng1 {[%emt 0:00:10]} Nxd4 {[%emt 0:00:10]} 81. Ka3 {[%emt 0:00:10]} Ka6 {[%emt 0:00:10]} 82. Kb2 {[%emt 0:00:10]} Kb5 {[%emt 0:00:10]} 83. Kc3 {[%emt 0:00:10]} Ne6 {[%emt 0:00:10]} 84. Nh3 {[%emt 0:00:10]} c5 {[%emt 0:00:10]} 85. bxc5 {[%emt 0:00:10]} Kxc5 {[%emt 0:00:10]} 86. Nf2 {[%emt 0:00:10]} Kb5 {[%emt 0:00:10]} 87. a6 {[%emt 0:00:10]} Kxa6 {[%emt 0:00:10]} 88. Kb4 Kb6 {[%emt 0:00:10]} 89. Nh3 {[%emt 0:00:20]} Kc6 {[%emt 0:00:10]} 90. Nf2 {[%emt 0:00:10]} Nd4 {[%emt 0:00:10]} 91. Nh3 {[%emt 0:00:10]} Nxf3 {[%emt 0:00:10]} 92. Nf2 {[%emt 0:00:10]} Ne5 {[%emt 0:00:10]} 93. Nh3 {[%emt 0:00:10]} Nxg4 {[%emt 0:00:10]} 94. Nxg5 {[%emt 0:00:10]} Ne5 {[%emt 0:00:10]} 95. Nh3 {[%emt 0:00:10]} f3 {[%emt 0:00:10]} 96. Nf2 {[%emt 0:00:10]} Nd3+ {[%emt 0:00:10]} 97. Nxd3 {[%emt 0:00:10]} cxd3 {[%emt 0:00:10]} 98. Kc3 {[%emt 0:00:10]} f2 {[%emt 0:00:10]} 99. Kd4 {[%emt 0:00:10]} 0-1